bitfinex/quotes_ETHUSD_20250824
["timestamp","ask_amount","ask_price","bid_price","bid_amount"]
[1756074119300,0.001,4767.8,4767.7,2.1039474]
[1756074119918,0.001,4767.8,4767.7,2.1079474]
[1756074120117,0.001,4767.8,4767.7,2.1039474]
[1756074120319,0.001,4767.8,4767.7,2.2087474]
[1756074120525,0.001,4767.8,4767.7,2.1039474]
[1756074120741,0.001,4767.8,4767.7,0.0065]
[1756074120939,0.001,4767.8,4767.7,2.1039474]
[1756074121103,0.001,4767.8,4767.7,2.83457498]
[1756074121322,4.4808,4767.8,4765.2,1.613]
[1756074121544,0.4485,4767.7,4765.7,2.09830745]
[1756074121738,0.4485,4767.7,4765.9,2.0982257]
[1756074122048,0.4485,4767.7,4765.5,0.0041]
[1756074122216,3.745,4767.6,4765.5,0.0041]
[1756074122415,0.4485,4767.5,4765.7,2.09828452]
[1756074122612,0.41945,4767.4,4765.2,1.613]
[1756074122844,0.41945,4767.4,4765.1,0.04]
[1756074122845,0.2883,4766.3,4765.1,0.04]
[1756074123020,5.6473,4766.3,4765.1,0.04]
[1756074123222,6.0958,4766.3,4765.1,0.04]
[1756074124037,9.0958,4766.3,4765.1,0.04]
[1756074124259,10.03821806,4766.3,4765.1,0.04]
[1756074124418,10.4781075,4766.3,4765.1,0.04]
[1756074124620,12.3981075,4766.3,4765.1,0.04]
[1756074124820,14.49617098,4766.3,4765.1,0.04]
[1756074125064,37.0181075,4766.2,4765.1,0.04]
[1756074125216,38.45060418,4766.2,4765.1,0.04]
[1756074125416,41.01986316,4766.2,4765.1,0.04]
[1756074125725,40.97428684,4766.2,4765.1,0.04]
[1756074125924,40.4249445,4766.2,4765.1,0.04]
[1756074126664,39.1649445,4766.2,4765.1,0.04]
[1756074126818,4.132,4765.6,4765.1,0.04]
[1756074127025,2.09896999,4764.3,4763.1,0.04]
[1756074127236,2.09917253,4763.8,4763.1,0.04]
[1756074127434,0.2883,4763.2,4763.1,0.04]
[1756074127666,5.6643,4763.2,4763.1,0.04]
[1756074127874,10.49536288,4763.2,4763.1,0.04]
[1756074128074,40.49536288,4763.2,4763.1,0.04]
[1756074128382,0.66,4762.5,4762.1,0.04]
[1756074128541,3.0,4763.1,4762.1,0.04]
[1756074128542,0.43816402,4763.0,4762.1,0.04]
[1756074128742,0.2883,4762.2,4762.1,0.04]
[1756074128947,4.614,4762.2,4762.1,0.04]
[1756074129241,9.1218,4762.2,4762.1,0.04]
[1756074129649,6.1218,4762.2,4762.1,0.04]
[1756074129942,5.384,4762.2,4762.1,0.04]
[1756074130874,6.37660724,4762.2,4762.1,0.04]
[1756074131440,1.7188,4762.2,4762.1,0.04]
[1756074131663,5.4898,4762.2,4762.1,0.3138]
[1756074131842,1.7188,4762.2,4762.1,0.3138]
[1756074132043,5.4908,4762.2,4762.1,0.3138]
[1756074132678,1.614,4763.5,4762.1,0.4849]
[1756074132983,3.776,4763.4,4762.4,2.09977658]
[1756074133273,3.776,4763.4,4763.3,0.2738]
[1756074133776,1.614,4764.3,4763.3,0.4449]
[1756074133978,3.776,4764.2,4763.3,0.69932871]
[1756074134299,0.3078,4763.4,4762.2,0.10950385]
[1756074134586,1.614,4763.3,4761.8,5.62274819]
[1756074134754,3.789,4763.2,4761.9,0.10952428]
[1756074134958,4.2619,4763.2,4761.9,0.10952428]
[1756074135162,5.411,4763.1,4761.8,5.62276465]
[1756074135364,5.411,4763.1,4762.1,0.60627646]
[1756074135598,5.411,4763.1,4762.1,0.04]
[1756074136576,1.614,4763.1,4762.1,2.13987295]
[1756074136775,3.797,4763.0,4762.1,0.04]
[1756074137393,3.797,4763.0,4762.1,2.13990842]
[1756074137800,0.32858417,4764.0,4762.9,0.2738]
[1756074137801,1.614,4763.8,4762.9,0.2738]
[1756074137973,3.795,4763.7,4762.9,0.2738]
[1756074138303,1.614,4763.8,4762.9,0.2738]
[1756074138463,3.795,4763.7,4762.9,2.37336055]
[1756074138666,3.795,4763.7,4762.9,2.83777326]
[1756074138975,3.795,4763.7,4762.1,0.04]
[1756074139160,3.795,4763.7,4762.1,0.2111]
[1756074139362,3.795,4763.7,4762.1,0.04]
[1756074139563,0.4729,4763.6,4762.1,0.04]
[1756074140593,1.614,4763.8,4762.1,0.2111]
[1756074140796,3.791,4763.7,4762.2,0.59433122]
[1756074140960,3.791,4763.7,4762.9,2.09953414]
[1756074141163,7.17,4764.3,4762.2,0.59433122]
[1756074141164,3.791,4764.1,4763.6,0.2738]
[1756074141409,3.791,4764.1,4763.0,2.09947537]
[1756074141564,3.791,4764.1,4762.7,2.09964056]
[1756074141759,1.569,4764.0,4762.2,0.59433122]
[1756074141963,0.4729,4763.9,4762.2,0.59433122]
[1756074142499,0.4729,4763.9,4762.1,0.04]
[1756074142718,0.1048,4762.4,4762.1,0.04]
[1756074143220,0.1048,4762.4,4762.2,2.0998698]
[1756074143602,0.1048,4762.4,4762.1,0.04]
[1756074143990,0.1048,4762.4,4762.3,2.09982571]
[1756074144187,0.1048,4762.4,4762.3,2.37362571]
[1756074144411,3.789,4763.0,4762.5,2.09971966]
[1756074144614,0.1048,4762.7,4762.5,2.09971966]
[1756074144813,5.401,4763.2,4762.6,2.37349344]
[1756074145018,0.1048,4762.9,4762.6,0.2738]
[1756074145216,0.1048,4762.9,4762.1,0.1448]
[1756074145388,0.1048,4762.9,4762.3,2.09978421]
[1756074145588,0.1048,4762.9,4762.1,0.1448]
[1756074145789,0.1048,4762.4,4762.1,0.04]
[1756074146218,0.4729,4762.3,4762.1,0.04]
[1756074146390,0.7807,4762.2,4762.1,0.04]
[1756074146717,2.3947,4762.2,4762.1,0.04]
[1756074148288,1.614,4762.2,4762.1,0.04]
[1756074149996,2.3947,4762.2,4762.1,0.04]
[1756074150991,6.1747,4762.2,4762.1,0.04]
[1756074151189,6.80265,4762.2,4762.1,0.04]
[1756074151992,7.24083757,4762.2,4762.1,0.04]
[1756074152827,10.24083757,4762.2,4762.1,0.04]
[1756074153129,10.24083757,4762.2,4761.6,0.004]
[1756074153130,1.26,4761.7,4761.6,0.004]
[1756074153330,2.10031084,4761.2,4761.1,0.04]
[1756074153490,44.48120231,4761.2,4760.8,0.003]
[1756074153690,0.73108933,4761.0,4760.8,0.003]
[1756074153934,0.1048,4760.9,4760.8,0.003]
[1756074154195,0.1048,4760.9,4760.8,0.3066]
[1756074154419,0.1048,4760.9,4760.8,2.66218731]
[1756074154737,30.0,4760.9,4760.8,3.13846245]
[1756074155036,0.73108933,4762.8,4760.8,3.13846245]
[1756074155037,30.0,4761.3,4761.2,5.76031084]
[1756074155323,3.781,4762.8,4761.5,0.66]
[1756074155626,0.1048,4762.8,4762.7,0.3036]
[1756074156124,3.8858,4762.8,4761.2,0.1048]
[1756074156324,3.781,4762.8,4761.1,0.2551]
[1756074156632,3.781,4762.8,4760.8,3.47927514]
[1756074156633,0.1048,4762.3,4762.2,2.0998698]
[1756074156797,0.1048,4762.7,4762.2,0.3036]
[1756074157622,3.78,4762.6,4761.3,3.0]
[1756074157825,3.78,4762.6,4760.9,3.2551]
[1756074158032,0.1048,4761.7,4761.2,2.47374756]
[1756074158239,0.1048,4761.7,4761.3,0.58336476]
[1756074158396,0.1048,4761.7,4761.2,0.37343751]
[1756074158591,0.1048,4761.7,4761.3,2.10023997]
[1756074158846,0.1048,4761.7,4761.6,0.3036]
[1756074159047,0.1048,4761.7,4761.6,2.4037344]
[1756074159204,1.615,4762.8,4761.6,2.4037344]
[1756074159205,0.1048,4762.5,4761.6,0.6635]
[1756074159527,4.2509,4762.6,4760.8,0.47927514]
[1756074159729,2.52727298,4762.5,4760.8,0.003]
[1756074159929,0.43937298,4762.4,4760.8,2.10347634]
[1756074160226,0.43937298,4762.3,4761.1,2.10033969]
[1756074160428,3.78,4762.2,4760.9,0.2551]
[1756074160630,3.782,4762.2,4760.9,0.2551]
[1756074160929,3.782,4762.2,4761.0,0.23586641]
[1756074161128,3.782,4762.2,4761.5,2.10017603]
[1756074161297,3.782,4762.2,4761.0,2.3362352]
[1756074161732,3.782,4762.2,4761.4,2.10021738]
[1756074162033,3.782,4762.2,4761.2,2.10029513]
[1756074162218,3.782,4762.2,4761.3,2.54391077]
[1756074162426,0.4729,4762.1,4760.8,0.003]
[1756074162623,0.91191881,4762.1,4760.8,0.003]
[1756074162809,0.43901881,4762.0,4760.8,0.003]
[1756074163139,0.86691881,4762.0,4760.8,0.003]
[1756074163314,0.4279,4762.0,4760.8,0.003]
[1756074163638,0.4279,4761.9,4760.8,0.003]
[1756074163937,0.3025,4760.9,4760.8,0.003]
[1756074164101,4.0795,4760.9,4760.8,0.003]
[1756074164301,4.5064,4760.9,4760.8,0.003]
[1756074164631,4.5104,4760.9,4760.8,0.003]
[1756074164832,4.94926757,4760.9,4760.8,0.003]
[1756074165432,1.71766767,4760.9,4760.8,0.003]
[1756074165636,5.49666767,4760.9,4760.8,0.003]
[1756074165831,1.49804224,4760.9,4760.8,0.003]
[1756074166039,5.27804224,4760.9,4760.8,0.003]
[1756074166284,5.82644234,4760.9,4760.8,0.003]
[1756074166432,2.04644234,4760.9,4760.8,0.003]
[1756074166633,5.82544234,4760.9,4760.8,0.003]
[1756074166935,5.27704224,4760.9,4760.8,0.003]
[1756074167871,6.00813157,4760.9,4760.8,0.003]
[1756074168081,38.10857476,4760.9,4760.8,0.003]
[1756074168284,1.26,4758.9,4757.1,0.04]
[1756074168505,0.54815489,4758.2,4757.1,0.04]
[1756074168778,4.61215489,4759.4,4757.2,0.2981]
[1756074168963,2.0429,4759.5,4758.1,0.3041]
[1756074168964,0.43809411,4759.3,4758.1,0.3041]
[1756074169276,4.93099411,4760.0,4758.1,1.9191]
[1756074169574,0.1048,4759.6,4758.9,0.1048]
[1756074169784,0.4279,4760.2,4758.2,0.2981]
[1756074170070,4.071,4760.1,4758.3,0.19131]
[1756074170275,0.1048,4758.6,4758.3,0.19131]
[1756074170438,0.1048,4758.9,4758.5,0.3041]
[1756074171358,0.1048,4759.3,4758.6,0.4029]
[1756074171742,0.1048,4759.3,4758.9,2.10132306]
[1756074171943,0.1048,4759.3,4757.8,2.1017963]
[1756074171944,0.4279,4759.2,4757.3,4.58328038]
[1756074172258,0.1048,4758.5,4757.9,0.1048]
[1756074172458,0.1048,4758.5,4757.7,0.1048]
[1756074172674,0.1048,4758.9,4758.4,0.3041]
[1756074173284,0.4379655,4759.8,4758.8,0.3041]
[1756074173588,0.04,4760.4,4759.0,2.10128178]
[1756074173754,0.04,4760.4,4759.1,0.49096198]
[1756074173755,0.4279,4760.3,4759.1,0.49096198]
[1756074173937,0.4279,4760.3,4758.7,0.1048]
[1756074174138,0.1048,4759.6,4757.4,0.3021]
[1756074174343,0.1048,4758.4,4757.7,0.1048]
[1756074174586,0.1048,4758.4,4758.3,0.3041]
[1756074175085,1.615,4759.6,4758.3,0.6022]
[1756074175242,0.1048,4759.2,4758.3,0.707]
[1756074175444,0.1048,4759.2,4758.4,0.28086042]
[1756074175792,0.1048,4759.2,4758.4,2.38240093]
[1756074175991,0.1048,4759.2,4758.4,0.28086042]
[1756074176284,1.615,4759.6,4757.9,2.10172955]
[1756074176524,0.1048,4758.5,4757.9,0.1048]
[1756074176694,0.1048,4758.5,4758.0,2.10170759]
[1756074177177,1.615,4759.6,4758.4,0.3041]
[1756074177178,0.1048,4758.9,4758.4,0.3041]
[1756074177367,1.615,4759.6,4758.5,0.2981]
[1756074177539,0.1048,4759.2,4758.6,2.10141601]
[1756074177755,0.1048,4759.2,4758.7,0.43077777]
[1756074177961,0.1048,4759.2,4758.7,2.10141404]
[1756074178159,0.1048,4759.2,4758.3,0.1048]
[1756074178358,2.0429,4759.6,4758.3,2.10158525]
[1756074178594,0.1048,4758.7,4758.0,0.1048]
[1756074178773,0.1048,4759.0,4758.7,2.10137437]
[1756074178945,0.1048,4759.0,4758.9,0.3041]
[1756074180083,0.1048,4759.0,4758.3,0.1048]
[1756074180263,0.1048,4759.0,4758.9,0.3041]
[1756074180601,0.1048,4759.7,4758.9,2.8082984]
[1756074180946,0.1048,4759.7,4759.1,2.10119504]
[1756074181187,0.1048,4759.7,4759.1,0.49095531]
[1756074181343,0.1048,4759.7,4759.4,2.10106143]
[1756074181544,0.1048,4759.7,4759.2,2.1011554]
[1756074181739,1.616,4760.3,4759.6,0.3041]
[1756074181940,0.1048,4760.0,4759.6,0.3041]
[1756074182404,1.656,4761.4,4760.3,2.10070793]
[1756074182552,0.04,4761.4,4760.3,3.12305648]
[1756074182897,0.36868773,4761.4,4760.4,3.66]
[1756074183060,0.36868773,4761.4,4761.3,3.06436673]
[1756074183249,0.04,4761.4,4761.3,6.36246673]
[1756074183650,0.001,4762.2,4762.0,2.759958]
[1756074183884,0.001,4762.2,4762.0,3.55005696]
[1756074184380,0.001,4762.2,4762.0,2.89005696]
[1756074184581,0.001,4762.2,4762.0,0.48599896]
[1756074184783,0.001,4762.2,4762.0,2.099958]
[1756074184985,0.001,4762.2,4761.2,3.66]
[1756074185183,0.001,4762.2,4761.9,2.09998505]
[1756074185384,0.001,4762.2,4760.2,0.2581]
[1756074185678,0.001,4762.2,4759.3,0.15586642]
[1756074185679,0.4279,4762.0,4760.3,5.65]
[1756074185983,0.4279,4762.0,4760.4,3.66]
[1756074186187,0.4279,4762.0,4760.3,5.654]
[1756074186188,1.615,4761.9,4760.3,0.004]
[1756074186552,0.4279,4761.8,4760.3,0.004]
[1756074188259,4.032,4761.7,4760.3,0.004]
[1756074188457,1.615,4761.9,4760.3,0.004]
[1756074188648,1.615,4761.9,4761.0,2.10039686]
[1756074188849,1.615,4761.9,4760.4,0.66]
[1756074189099,1.615,4761.9,4760.3,0.54029301]
[1756074189279,1.615,4761.9,4760.7,2.10052621]
[1756074189466,1.615,4761.9,4760.5,0.66]
[1756074189666,0.001,4762.1,4760.6,0.4200293]
[1756074189872,0.001,4762.1,4760.8,2.10047237]
[1756074190063,0.001,4762.1,4760.7,1.615]
[1756074190264,0.001,4762.1,4760.8,0.66]
[1756074190462,0.001,4762.1,4761.3,2.1002408]
[1756074190764,0.001,4762.1,4761.1,2.10033079]
[1756074190968,0.001,4762.1,4761.3,2.10026316]
[1756074191366,0.001,4762.1,4760.9,2.76042628]
[1756074191367,0.001,4762.1,4761.4,2.10021876]
[1756074191616,0.001,4762.1,4761.4,2.1002098]
[1756074191817,0.001,4762.1,4760.9,0.66]
[1756074191989,0.001,4762.1,4761.6,2.10012551]
[1756074192186,0.001,4762.1,4761.8,2.10001346]
[1756074192388,0.001,4762.1,4762.0,2.404058]
[1756074192784,0.001,4762.1,4762.0,2.508858]
[1756074193725,0.001,4762.1,4762.0,0.1048]
[1756074193931,0.737,4762.1,4760.8,0.59531293]
[1756074194229,0.737,4762.1,4761.2,0.1048]
[1756074194408,0.1048,4761.8,4761.2,0.1048]
[1756074194586,0.3,4761.3,4760.6,2.10053605]
[1756074194917,0.3,4761.3,4760.7,0.1048]
[1756074195438,0.1048,4761.0,4760.3,0.1088]
[1756074195585,0.1048,4761.0,4760.3,0.58118]
[1756074195784,0.1048,4761.0,4760.3,2.20948419]
[1756074196027,0.1048,4761.0,4760.4,2.1006634]
[1756074196237,0.1048,4761.0,4760.3,0.1088]
[1756074196415,0.1048,4760.6,4760.3,0.004]
[1756074197904,0.3,4760.4,4760.3,0.004]
[1756074198093,0.3,4760.4,4759.9,0.1048]
[1756074198293,0.1048,4760.0,4757.6,0.1048]
[1756074198497,0.4048,4759.2,4757.6,0.1048]
[1756074198721,0.4048,4759.2,4757.7,2.10181996]
[1756074198921,0.8408,4759.2,4757.6,0.1048]
[1756074199993,0.8408,4759.2,4757.1,2.40420996]
[1756074199994,0.8408,4759.2,4757.1,0.04]
[1756074200524,2.94199347,4759.2,4757.1,0.04]
[1756074201308,0.736,4759.2,4757.1,0.04]
[1756074202130,2.83719347,4759.2,4757.1,0.04]
[1756074202729,36.93505821,4759.2,4757.1,0.04]
[1756074202904,37.48341483,4759.2,4757.1,0.04]
[1756074203091,36.93505821,4759.2,4757.1,0.04]
[1756074203295,2.76163507,4758.2,4757.1,0.04]
[1756074203497,2.76207685,4757.2,4757.1,0.04]
[1756074203699,38.927,4757.2,4756.1,0.04]
[1756074203922,30.436,4757.1,4756.1,0.04]
[1756074204103,0.3,4756.2,4756.1,0.04]
[1756074204304,6.10531469,4756.2,4755.1,0.04]
[1756074204504,0.436,4756.1,4755.1,0.04]
[1756074204712,1.94511411,4756.2,4755.1,0.04]
[1756074204909,1.94511411,4756.2,4755.6,2.10274153]
[1756074204910,0.32911411,4756.2,4755.6,2.10274153]
[1756074205109,2.052,4757.0,4755.7,0.21027415]
[1756074205336,2.052,4757.0,4755.1,0.4621]
[1756074205337,0.436,4756.9,4755.1,0.04]
[1756074206298,4.035,4756.8,4755.1,0.04]
[1756074206526,30.0,4756.7,4755.1,0.04]
[1756074206740,0.3,4755.2,4755.1,0.04]
[1756074206941,1.616,4755.3,4755.1,0.04]
[1756074207131,1.616,4755.5,4755.1,0.04]
[1756074207334,0.3,4755.2,4755.1,0.04]
[1756074207541,0.736,4755.2,4755.1,0.04]
[1756074208467,1.616,4755.5,4755.1,0.04]
[1756074209132,2.052,4755.5,4755.1,0.04]
[1756074209343,0.3,4755.2,4755.1,0.04]
[1756074209854,0.3,4755.2,4753.8,0.25]
[1756074209855,0.66,4755.1,4753.8,0.25]
[1756074210062,0.3,4754.2,4753.8,0.25]
[1756074210222,35.965,4754.2,4753.8,0.25]
[1756074210426,1.26,4753.8,4747.6,2.10629716]
[1756074210643,0.66,4751.4,4748.7,0.4707]
[1756074210957,0.436,4751.9,4749.8,0.4707]
[1756074211253,0.1056,4750.2,4749.8,0.4707]
[1756074211421,0.1056,4750.2,4749.5,1.616]
[1756074211422,0.4707,4752.4,4750.1,0.5107]
[1756074211630,2.052,4752.9,4750.1,0.5107]
[1756074211828,0.436,4752.9,4750.1,0.5107]
[1756074212330,0.436,4753.7,4750.4,0.66]
[1756074212530,1.77446153,4754.8,4750.7,2.10495295]
[1756074212531,0.436,4754.3,4750.7,2.10495295]
[1756074212756,0.436,4754.3,4751.4,0.66]
[1756074212962,0.54660215,4755.3,4751.4,0.66]
[1756074212963,0.04,4753.4,4751.6,0.66]
[1756074213242,41.331,4753.3,4749.5,2.10545468]
[1756074213452,41.331,4753.3,4749.0,1.617]
[1756074213453,33.86810205,4753.2,4750.0,0.4707]
[1756074213661,3.0,4753.0,4750.3,2.10511811]
[1756074213859,30.86810205,4752.9,4750.4,3.98366092]
[1756074214028,30.43210205,4752.8,4750.4,3.98366092]
[1756074214233,30.43167136,4752.7,4749.2,0.4707]
[1756074214431,3.66,4752.5,4749.2,0.4707]
[1756074214668,0.32941609,4752.1,4749.2,0.4707]
[1756074214862,3.0,4751.9,4749.2,0.4707]
[1756074215063,0.436,4751.8,4749.1,1.657]
[1756074215254,0.436,4751.8,4749.4,2.10551507]
[1756074215450,0.436,4751.8,4749.1,2.1277]
[1756074215652,0.436,4751.8,4750.3,2.10510464]
[1756074215867,0.436,4751.8,4750.3,0.21451046]
[1756074216028,0.32941609,4752.1,4750.4,0.4707]
[1756074216366,0.436,4752.6,4750.4,0.4707]
[1756074216530,0.436,4753.3,4751.8,2.10444433]
[1756074216731,0.436,4753.3,4751.7,1.617]
[1756074216732,0.76534477,4753.3,4751.7,1.617]
[1756074216930,4.323,4753.9,4751.8,2.0877]
[1756074217129,0.32927667,4754.1,4752.4,2.10419044]
[1756074217330,0.32927667,4754.1,4751.9,1.82577]
[1756074217561,0.436,4754.2,4751.9,1.82577]
[1756074217730,0.436,4754.2,4752.9,2.10395984]
[1756074218065,0.436,4754.2,4752.7,2.10404314]
[1756074218931,0.436,4754.2,4752.9,2.10397668]
[1756074219131,0.436,4754.2,4752.1,0.4707]
[1756074219132,0.436,4754.2,4753.0,2.10392876]
[1756074219366,0.436,4754.2,4751.9,2.29647]
[1756074219668,0.47105103,4754.4,4747.4,1.26]
[1756074219669,0.436,4753.3,4751.1,1.618]
[1756074219867,5.17605103,4753.3,4751.1,1.618]
[1756074220032,0.32926655,4753.1,4751.1,1.618]
[1756074220233,0.43105103,4753.2,4751.2,0.4707]
[1756074220449,0.43105103,4753.2,4751.5,2.10459854]
[1756074220764,0.04,4753.4,4752.5,2.1041389]
[1756074220963,0.436,4753.3,4751.3,2.50805501]
[1756074221265,0.436,4753.3,4751.3,2.0887]
[1756074221468,0.43171434,4753.2,4751.3,4.19336907]
[1756074221709,0.43171434,4753.2,4751.3,2.0887]
[1756074221990,0.86771434,4753.1,4751.3,1.618]
[1756074222188,0.1056,4751.7,4751.3,1.618]
[1756074222577,0.1056,4751.7,4751.3,3.72265785]
[1756074222779,0.1056,4751.7,4751.3,1.618]
[1756074222966,0.1056,4751.4,4750.5,0.5763]
[1756074223689,0.1056,4751.4,4750.7,2.10490972]
[1756074223887,0.1056,4751.4,4750.5,0.5763]
[1756074224091,0.1056,4751.4,4750.5,2.68133998]
[1756074224394,0.1056,4751.4,4750.6,0.64045006]
[1756074224753,0.1056,4751.4,4750.6,2.10499219]
[1756074224959,0.1056,4751.4,4750.7,2.1049458]
[1756074225201,0.1056,4751.4,4750.6,2.10499646]
[1756074225363,0.1056,4751.4,4750.7,2.10493074]
[1756074225565,0.1056,4751.4,4750.7,2.10493179]
[1756074225993,0.1056,4751.4,4750.7,2.55623842]
[1756074226194,0.1056,4751.4,4750.5,0.1056]
[1756074226396,0.54660215,4751.1,4750.1,0.04]
[1756074226604,0.43463994,4751.0,4750.1,0.04]
[1756074226771,0.43463994,4750.9,4750.1,0.04]
[1756074227094,0.43463994,4750.8,4750.1,0.04]
[1756074227293,0.43463994,4750.7,4750.1,0.04]
[1756074227482,0.43463994,4750.6,4750.1,0.04]
[1756074227793,0.43463994,4750.5,4750.1,0.04]
[1756074227998,0.43463994,4750.4,4750.1,0.04]
[1756074228172,0.43463994,4750.3,4750.1,0.04]
[1756074228497,0.43463994,4750.2,4750.1,0.04]
[1756074228703,0.90093994,4750.2,4750.1,0.04]
[1756074228998,0.43463994,4750.2,4750.1,0.04]
[1756074229566,1.53114472,4750.2,4750.1,0.04]
[1756074229892,0.43463994,4750.2,4750.1,0.04]
[1756074230206,0.90093994,4750.2,4749.3,0.003]
[1756074230359,1.4556092,4749.8,4749.3,0.003]
[1756074230670,1.09194596,4749.4,4749.3,0.003]
[1756074230873,0.43463994,4749.4,4748.7,0.398]
[1756074231093,0.98053872,4749.3,4748.2,0.66]
[1756074231297,0.98053872,4749.2,4748.3,0.2318]
[1756074231501,0.98053872,4749.2,4747.7,5.10625032]
[1756074231502,0.43463994,4749.1,4748.0,2.10614013]
[1756074231702,0.43463994,4749.1,4747.7,3.0]
[1756074231703,0.43463994,4749.0,4748.1,3.04]
[1756074231885,0.43463994,4748.9,4748.8,2.10579514]
[1756074232074,0.54589878,4749.7,4748.7,2.10583949]
[1756074232392,0.43687462,4749.6,4748.7,5.10583949]
[1756074232600,0.43687462,4749.5,4749.4,2.10552911]
[1756074232797,0.43687462,4749.5,4749.0,2.10567458]
[1756074233103,0.43687462,4749.5,4748.5,3.72389086]
[1756074233104,0.43687462,4749.4,4748.0,1.618]
[1756074233302,0.43687462,4749.3,4748.3,3.0]
[1756074233612,0.43687462,4749.2,4748.5,0.66]
[1756074233763,0.43687462,4749.1,4748.7,2.10579706]
[1756074233964,0.54589878,4749.8,4749.1,2.10562316]
[1756074234200,0.54589878,4749.8,4748.6,0.4111]
[1756074234201,0.43698277,4749.7,4749.4,2.10551134]
[1756074234500,0.43698277,4749.6,4749.5,3.21648478]
[1756074234703,0.54589878,4750.3,4749.6,0.66]
[1756074235015,0.98301447,4750.2,4749.7,0.38765291]
[1756074235170,0.43711569,4750.1,4749.8,0.451]
[1756074235364,0.43711569,4750.0,4749.2,4.619]
[1756074235668,0.43765267,4749.9,4749.3,0.451]
[1756074235886,0.43765267,4749.8,4749.7,2.10539613]
[1756074236268,0.43765267,4749.8,4749.7,2.66199613]
[1756074236468,0.43765267,4749.8,4749.7,3.13874267]
[1756074236993,0.43765267,4749.8,4749.7,0.58234654]
[1756074237201,0.43765267,4749.8,4749.7,0.1056]
[1756074237871,0.43889373,4749.8,4749.7,0.405]
[1756074238376,0.43889373,4749.8,4749.7,0.1056]
[1756074238377,0.9875109,4749.8,4749.7,0.1056]
[1756074238577,0.43889373,4749.8,4749.5,0.1056]
[1756074238804,0.1056,4750.2,4749.5,0.1056]
[1756074238805,0.54923606,4749.6,4749.5,0.1056]
[1756074239010,0.98812979,4749.6,4749.5,0.1056]
[1756074239170,0.43889373,4749.6,4749.5,0.1056]
[1756074239366,0.98812979,4749.6,4749.5,0.1056]
[1756074239790,0.43889373,4749.6,4749.5,0.1056]
[1756074240304,0.43889373,4749.6,4749.5,0.856]
[1756074240691,0.43889373,4749.6,4749.5,2.96148478]
[1756074240990,0.43889373,4749.6,4749.5,3.91803326]
[1756074241302,0.54937449,4750.8,4749.7,2.10538904]
[1756074241518,0.4394758,4750.7,4749.8,2.1053518]
[1756074241671,0.4394758,4750.6,4750.5,2.10504157]
[1756074241871,0.54937449,4751.2,4751.1,2.10477573]
[1756074242071,0.54937449,4751.2,4750.5,1.18197541]
[1756074242072,0.43957913,4751.2,4751.0,0.1056]
[1756074242294,1.63374538,4751.1,4749.1,1.623]
[1756074242483,0.54955005,4750.3,4749.2,2.10560995]
[1756074242772,0.98912918,4750.2,4749.3,0.372861]
[1756074242967,0.98912918,4750.1,4749.3,0.372861]
[1756074243168,0.43957913,4750.0,4749.1,1.623]
[1756074243397,0.43957913,4749.9,4749.1,1.623]
[1756074243603,0.43957913,4749.8,4749.1,1.623]
[1756074243807,0.43957913,4749.7,4749.2,2.10561778]
[1756074244008,0.54955005,4750.3,4749.5,2.10548478]
[1756074244238,0.98947776,4750.2,4749.1,1.623]
[1756074244393,0.43992771,4750.1,4749.1,1.623]
[1756074244591,0.98947776,4750.0,4749.1,1.623]
[1756074244818,0.43992771,4749.9,4749.2,2.10560857]
[1756074245021,0.43992771,4749.8,4749.1,1.7853]
[1756074245217,0.54955005,4750.0,4749.2,2.10561743]
[1756074245218,0.43992771,4749.7,4749.2,2.10561743]
[1756074245428,0.43992771,4749.6,4749.1,1.7853]
[1756074245731,0.43992771,4749.5,4749.4,2.10552911]
[1756074245891,0.54955005,4750.2,4749.4,5.0014]
[1756074246087,0.7327334,4750.5,4749.4,5.0014]
[1756074246088,0.44002372,4750.1,4750.0,2.10522526]
[1756074246291,0.54955005,4750.7,4750.1,2.10520251]
[1756074246626,0.54955005,4750.7,4749.2,2.28412048]
[1756074246627,1.38764596,4750.2,4749.1,0.004]
[1756074246843,0.73327104,4749.2,4749.1,0.004]
[1756074247012,0.73577183,4749.2,4749.1,0.004]
[1756074247198,1.20207183,4749.2,4749.1,0.004]
[1756074247643,1.93520189,4749.2,4749.1,0.004]
[1756074247906,1.20207183,4749.2,4749.1,0.004]
[1756074248346,0.73577183,4749.2,4749.1,0.004]
[1756074248640,1.20207183,4749.2,4749.1,0.004]
[1756074249004,1.93524081,4749.2,4749.1,0.004]
[1756074249506,1.93541021,4749.2,4749.1,0.004]
[1756074249829,1.46911021,4749.2,4749.1,0.004]
[1756074250141,1.17341021,4749.2,4749.1,0.004]
[1756074250344,1.20207183,4749.2,4749.1,0.004]
[1756074250519,1.17318259,4749.2,4749.1,0.004]
[1756074251007,0.44007183,4749.2,4749.1,0.004]
[1756074251806,1.93518259,4749.2,4749.1,0.004]
[1756074252019,2.3019784,4749.2,4749.1,0.004]
[1756074252250,0.84137183,4749.2,4749.1,0.004]
[1756074252744,1.57462004,4749.2,4749.1,0.004]
[1756074253305,1.19377183,4749.2,4749.1,0.004]
[1756074253545,1.92702004,4749.2,4749.1,0.004]
[1756074253725,1.19377183,4749.2,4749.1,0.004]
[1756074253941,1.92702004,4749.2,4749.1,0.004]